Cogmind - Beta 17 @@@ ROGUE MODE // 2026.07.26 @ 12:35:55 Player: Cinder Result: Self-destructed Performance ------------- Evolutions (1) 500 Regions Visited (2) 400 Robots Destroyed (67) 335 Value Destroyed (1294) 1294 Prototype IDs (3) 60 Alien Tech Used (0) 0 Bonus (12) 12 TOTAL SCORE: 2601 Bonus ------- High Alert Combat Kills 12 Cogmind --------- Core Integrity 11/400 Matter 265/300 Energy 275/275 System Corruption 0% Temperature Cool (24) Movement Rolling (95) Ox1 Location -9/Materials Parts ------- > --- POWER (1) -------- Deuterium Engine > --- PROPULSION (3) --- Wheel Compact Wheel > --- UTILITY (3) ------ Cooling System Large Storage Unit Hardened Light Armor Plating > --- WEAPON (2) ------- Advanced Beam Cannon Mini Grenade Launcher > --- INVENTORY (15) --- Deuterium Engine Deuterium Engine Wheel Compact Wheel Cooling System Large Matter Pod (150) Signal Interpreter Hardened Light Armor Plating Tractor Beam Advanced Beam Cannon Assault Cannon Assault Cannon Assault Cannon Assault Cannon Grenade Launcher Peak State ------------ > --- POWER ------------ Deuterium Engine > --- PROPULSION ------- Wheel Compact Wheel Compact Wheel > --- UTILITY ---------- Cooling System Large Storage Unit Hardened Light Armor Plating > --- WEAPON ----------- Advanced Beam Cannon Advanced Beam Cannon > --- INVENTORY -------- Deuterium Engine Deuterium Engine Wheel Compact Wheel Cooling System Large Matter Pod Signal Interpreter Hardened Light Armor Plating Tractor Beam Assault Cannon Assault Cannon Assault Cannon Assault Cannon Grenade Launcher Mini Grenade Launcher [Rating: 20] Favorites ----------- Power Ion Engine Engine Ion Engine Propulsion Wheel Wheel Wheel Utility Large Storage Unit Device Cooling System Storage Large Storage Unit Processor Improved Terrain Scan Processor Hackware Hacking Suite Protection Hardened Light Armor Plating Weapon Advanced Beam Cannon Energy Gun Improved Medium Laser Energy Cannon Advanced Beam Cannon Ballistic Gun Assault Rifle Ballistic Cannon Light Cannon Launcher Grenade Launcher Build | -11 -10 -9 ------- Run | Yrd Mat Mat Slots Evolved 2 | . . 2 Power . | . . . Propulsion 1 | . . 1 Utility 1 | . . 1 Weapon . | . . . Parts Attached 42 | 5 12 25 Power 6 | 1 2 3 Engine 6 | 1 2 3 Core . | . . . Reactor . | . . . Propulsion 12 | 2 2 8 Treads . | . . . Leg . | . . . Wheel 12 | 2 2 8 Hover . | . . . Flight . | . . . Utility 9 | . 3 6 Device 4 | . 2 2 Storage 1 | . 1 . Processor 1 | . . 1 Hackware 1 | . . 1 Protection 2 | . . 2 Artifact . | . . . Weapon 15 | 2 5 8 Energy Gun 4 | . 1 3 Energy Cannon 3 | . . 3 Ballistic Gun 3 | 2 1 . Ballistic Cannon 2 | . 2 . Launcher 3 | . 1 2 Special Weapon . | . . . Impact Weapon . | . . . Slashing Weapon . | . . . Piercing Weapon . | . . . Special Melee Weapon . | . . . Unidentified Prototypes 3 | . 1 2 Parts Lost 10 | . 2 8 Power . | . . . Propulsion 6 | . 1 5 Utility 2 | . . 2 Weapon 2 | . 1 1 Highest Loss Streak 2 | . 2 2 To Critical Strikes . | . . . Average Backups 13 | 1 11 14 Power 1 | . 1 2 Propulsion 1 | . 1 2 Utility 4 | . 3 4 Weapon 5 | . 4 5 Tool/Special . | . . . Unused Backups 26 | . 5 21 Power 6 | . 1 5 Propulsion 2 | . . 2 Utility 9 | . 2 7 Weapon 9 | . 2 7 Tool/Special . | . . . Average Slot Usage (%) 96 | . 95 97 Engine 12 | . 14 10 Wheel 30 | . 28 31 Device 11 | . 10 12 Storage 11 | . 13 11 Hackware 2 | . . 3 Protection 3 | . . 5 Energy Gun 3 | . . 4 Energy Cannon 9 | . . 14 Ballistic Gun 6 | . 17 . Ballistic Cannon 5 | . 10 2 Peak Build Rating 20 | 5 11 20 Average Rating 13 | 4 7 17 On Entrance 4 | . 5 9 Avg Prop Armor Cover (%) . | . . . Naked Turns . | . . . Heaviest Build 44 | 7 32 44 Greatest Support 48 | 26 26 48 Greatest Overweight (x) 3 | . 1 3 Average Overweight (x) . | . . . Largest Inventory Capacity 15 | 5 15 15 Average Capacity 14 | 5 14 15 Most Carried 15 | 3 15 15 Average Carried 13 | 1 11 14 Final Capacity 15 | 5 15 15 Final Carried 15 | 3 15 15 Class Distribution -------------------- 88% | Mutant 11% | Scavenger-Mutant Dominant Class ---------------- Mutant | -10/Materials Mutant | -9/Materials Resources | -11 -10 -9 ----------- Run | Yrd Mat Mat Matter Collected 1122 | 173 504 445 Remotely 174 | . 174 . Salvage Created 1990 | . 421 1569 Parts 135 | . 39 96 Haulers Intercepted 6 | . 2 4 Recyclers Shooed . | . . . Parts Field Recycled . | . . . Retrieved Matter . | . . . Parts Self-Destructed . | . . . Prevented . | . . . Parts Restored . | . . . Kills | -11 -10 -9 ------- Run | Yrd Mat Mat Combat Hostiles Destroyed 41 | . 12 29 Guns 7 | . 5 2 Cannons 17 | . 4 13 AOE 13 | . 3 10 Classes Destroyed 11 | . 5 6 Worker 6 | . 2 4 Builder 3 | . . 3 Hauler 6 | . 2 4 Recycler 4 | . . 4 Mechanic 1 | . . 1 Operator 4 | . 2 2 Watcher 2 | . . 2 Swarmer 18 | . 6 12 Grunt 15 | . 6 9 Duelist 1 | . . 1 Sentry 7 | . . 7 Best Kill Streak 6 | . 6 6 Combat Bots Only 5 | . 5 5 Max Kills in Single Turn 5 | . 2 5 Gunslinging . | . . . Exploded 3 | . 1 3 Melee . | . . . Uniques/NPCs Destroyed . | . . . Combat | -11 -10 -9 -------- Run | Yrd Mat Mat Hostile Shots Fired 184 | . 63 121 Missed 52 | . 16 36 Hits 132 | . 47 85 Melee 5 | . . 5 Projectile 127 | . 47 80 Critical Strikes 3 | . . 3 Damage Taken 1728 | . 446 1282 Core 474 | . 85 389 Absorbed by Shields . | . . . Core Remaining (%) 83 | 100 66 . Volleys Fired 118 | . 36 82 Largest 2 | . 2 2 Hottest 136 | . 50 136 Shots Fired 234 | . 72 162 Gun 93 | . 53 40 Cannon 128 | . 15 113 Launcher 13 | . 4 9 Special . | . . . Kinetic 74 | . 68 6 Thermal 147 | . . 147 Explosive 13 | . 4 9 Electromagnetic . | . . . Robot Hit Streak 18 | . 6 18 Robot Miss Streak 4 | . 4 3 Penetration Max . | . . . Secondary Targets 1 | . 1 . Max Gunslinging Chain 1 | . 1 . Shots Hit Robots 150 | . 40 110 Core Hits 81 | . 27 54 Critical Kills 1 | . . 1 Critical Parts Destroyed . | . . . Critical Strikes 3 | . . 3 Burn 2 | . . 2 Meltdown 1 | . . 1 Melee Attacks . | . . . Impact . | . . . Slashing . | . . . Piercing . | . . . Sneak Attacks . | . . . Combat Hostiles . | . . . Follow-up Attacks . | . . . Damage Inflicted 3598 | . 687 2911 Guns 822 | . 304 518 Cannons 1657 | . 173 1484 Explosions 1119 | . 210 909 Melee . | . . . Ramming . | . . . Kinetic 565 | . 477 88 Thermal 1914 | . . 1914 Explosive 1119 | . 210 909 Electromagnetic . | . . . Impact . | . . . Slashing . | . . . Piercing . | . . . Highest Corruption 4 | . 4 . Average Corruption 4 | . 4 . Corruption Purged . | . . . Corruption Blocked . | . . . Effects 2 | . 2 . Message Errors 1 | . 1 . Data Loss (minor) 1 | . 1 . Overload Shots . | . . . Overflow Damage 32 | . . 32 Projectiles 23 | . . 23 Explosions 9 | . . 9 Melee . | . . . Knockbacks 3 | . 3 . Impact . | . . . Kinetic 3 | . 3 . Secondary . | . . . Self-Inflicted Damage 192 | . . 192 Shots 5 | . . 5 Rammed . | . . . Targets Rammed . | . . . Kicked . | . . . Crushed . | . . . Highest Temperature 108 | . 8 108 Average Temperature 24 | . 2 27 Received Heat Transfer 459 | . 120 339 Siege Activations . | . . . Martial Activations . | . . . Shielding Activations . | . . . Robots Disrupted . | . . . Combat Hostiles . | . . . Robots Corrupted . | . . . Combat Hostiles . | . . . Parts Fried . | . . . Impact Corruptions . | . . . Robots Melted 5 | . . 5 Combat Hostiles 4 | . . 4 Parts Melted 10 | . . 10 Heat Transferred 3885 | . . 3885 Parts Sabotaged . | . . . Parts Stolen . | . . . Parts Stripped . | . . . Power Chain Reactions . | . . . Alert | -11 -10 -9 ------- Run | Yrd Mat Mat Maximum Alert Level 2 | . . 2 Low Security (%) 77 | 100 100 64 Level 1 22 | . . 34 Level 2 . | . . . Level 3 . | . . . Level 4 . | . . . Level 5 . | . . . High Security . | . . . Max Security . | . . . Peak Influence 464 | . 159 464 Initial 33 | . . 33 Average 118 | . 73 146 Influence Increases 1372 | . 388 984 Destroy 0b10 Robot/C 820 | . 240 580 Destroy 0b10 Robot/NC 130 | . 30 100 Destroy Leader 216 | . 54 162 Successful Hack 60 | . 22 38 Disable Machine 75 | . 30 45 Destroy Structure 56 | . 12 44 Lose Combat Pursuer 15 | . . 15 Influence Decreases 908 | . 308 600 Entered New Map 47 | . . 47 Time Decay 771 | . 288 483 Lost Part 90 | . 20 70 Squads Dispatched 7 | . 2 5 Investigation 3 | . 1 2 Extermination . | . . . Reinforcement 4 | . 1 3 Assault . | . . . Garrison . | . . . Intercept . | . . . Searches Triggered . | . . . Construction Impeded . | . . . Haulers Reinforced . | . . . Active Scanning Responses . | . . . Cargo Convoy Interrupts . | . . . Stealth | -11 -10 -9 --------- Run | Yrd Mat Mat Distress Signals 1 | . 1 . Communications Jammed . | . . . Distress Signals . | . . . Times Spotted 66 | . 22 44 Peak Tracking Total 7 | . 5 7 Tactical Retreats 1 | . . 1 Traps | -11 -10 -9 ------- Run | Yrd Mat Mat Traps Triggered 4 | . 1 3 Indirectly . | . . . Trap Hack Attempts . | . . . Triggered . | . . . Disarmed . | . . . Reprogrammed . | . . . Reused . | . . . Traps Extracted . | . . . Installed . | . . . Triggered . | . . . Machines | -11 -10 -9 ---------- Run | Yrd Mat Mat Machines Disabled 5 | . 2 3 Max in Single Turn 1 | . 1 1 Machines Repaired . | . . . Machines Dismantled . | . . . Machines Sabotaged . | . . . Overloaded Fab Kills . | . . . Hacking | -11 -10 -9 --------- Run | Yrd Mat Mat Machines Accessed 12 | . 6 6 Terminals 11 | . 6 5 Fabricators . | . . . Repair Stations . | . . . Recycling Units . | . . . Scanalyzers 1 | . . 1 Garrison Access . | . . . Total Hacks 31 | . 18 13 Successful 16 | . 9 7 Failed 15 | . 9 6 Catastrophic 2 | . . 2 Database Lockouts . | . . . Manual 29 | . 18 11 Terminals 29 | . 18 11 Fabricators . | . . . Repair Stations . | . . . Recycling Units . | . . . Scanalyzers 2 | . . 2 Garrison Access . | . . . Terminal Hacks 4 | . 3 1 Part Schematic 1 | . 1 . Robot Analysis 1 | . 1 . Registered Components 2 | . 1 1 Fabricator Hacks . | . . . Repair Station Hacks . | . . . Recycling Unit Hacks . | . . . Scanalyzer 2 | . . 2 Retrieve Study 2 | . . 2 Garrison Access Hacks . | . . . Unauthorized Hacks 10 | . 6 4 Terminals 10 | . 6 4 Botnet 10 | . 6 4 Fabricators . | . . . Repair Stations . | . . . Recycling Units . | . . . Scanalyzers . | . . . Garrison Access . | . . . Data Cores Recovered 2 | . 1 1 Used . | . . . Hacking Detections 11 | . 5 6 Full Trace Events . | . . . Feedback Events . | . . . Feedback Blocked . | . . . Robot Schematics Acquired . | . . . Robots Built . | . . . Authchips . | . . . Time . | . . . Total Robot Build Rating . | . . . Part Schematics Acquired 1 | . 1 . Parts Built . | . . . Authchips . | . . . Time . | . . . Total Part Build Rating . | . . . Part Studies Acquired 2 | . . 2 Parts Repaired . | . . . Time . | . . . Parts Recycled . | . . . Recycled Matter . | . . . Retrieved Matter . | . . . Retrieved Components . | . . . Parts Scanalyzed . | . . . Part Schematics Acquired . | . . . Parts Damaged . | . . . Bothacking | -11 -10 -9 ------------ Run | Yrd Mat Mat Used RIF Installer . | . . . Robots Hacked . | . . . Non-combat . | . . . Combat . | . . . Robot Hacks Applied . | . . . Relay Couplers Released . | . . . Fabnet Peak Effective % . | . . . Robots Rewired . | . . . Allies Hacked . | . . . Hacks Repelled . | . . . Allies | -11 -10 -9 -------- Run | Yrd Mat Mat Total Allies . | . . . Largest Group . | . . . Highest-Rated Group . | . . . Highest-Rated Ally . | . . . Total Orders . | . . . Ally Attacks . | . . . Total Damage . | . . . Kills . | . . . Allies Corrupted . | . . . Allies Melted . | . . . Intel | -11 -10 -9 ------- Run | Yrd Mat Mat Active Infowar (turns) 457 | . 265 192 Seismic 457 | . 265 192 Robot Analysis Total 1 | . 1 . Derelict Logs Recovered . | . . . Drone Launches . | . . . Drone Recoveries . | . . . Exploration | -11 -10 -9 ------------- Run | Yrd Mat Mat Turns Passed 2066 | 46 713 1307 Spaces Moved 1483 | 41 555 887 Core 2 | 2 . . Treads . | . . . Legs . | . . . Wheels 1481 | 39 555 887 Hover . | . . . Flight . | . . . Fastest Speed 50 | 50 90 86 Average Speed 96 | 87 96 96 Slowest Speed 125 | 90 105 125 Overloaded Moves . | . . . Propulsion Burnouts . | . . . Robots Hopped . | . . . Potential Cave-ins . | . . . Cave-ins Triggered . | . . . Exploration Rate (%) 62 | 4 97 87 Regions Visited 2 Branch Regions . Pre-discovered Areas . | . . . Known Exits Taken . | . . . Unknown Exits Taken 2 | 1 1 . Scrap Searched . | . . . Spaces Dug . | . . . Terrain Destroyed 62 | . 12 50 Melee . | . . . Projectile . | . . . AOE 62 | . 12 50 Terrain Rammed . | . . . Walls Destroyed . | . . . Machines Disabled . | . . . Actions | -11 -10 -9 --------- Run | Yrd Mat Mat Total 1902 | 48 669 1185 Wait 165 | . 27 138 Move 1481 | 40 554 887 Hop . | . . . Pick Up 43 | 3 23 17 Fast Attach 22 | 5 4 13 Attach 12 | . 4 8 Detach 5 | . . 5 Swap 19 | . 6 13 Drop 37 | . 15 22 Fire 118 | . 36 82 Melee . | . . . Ram . | . . . Kick . | . . . Crush . | . . . Escape Stasis . | . . . Rewire . | . . . Trap . | . . . Miscellaneous . | . . . Route ------- -11/Scrapyard -10/Materials (discovered 4 exits: *Mat x3 / [*Min]) -9/Materials (discovered 4 exits: [*Mat x3] / [*Min]) History --------- Turn | Location | Event 10 | -11/Scrapyard | Discovered new exit (range 15) 47 | -11/Scrapyard | Entered Materials 168 | -10/Materials | Discovered new exit (range 13) 268 | -10/Materials | Discovered new exit (range 13) 317 | -10/Materials | Build established: Mutant 537 | -10/Materials | Discovered new exit (range 14) 721 | -10/Materials | Discovered new exit (range 15) 760 | -10/Materials | Entered another Materials area 760 | -9/Materials | Evolved 2 slots: Propulsion x1, Utility x1 1146 | -9/Materials | Discovered new exit (range 15) 1541 | -9/Materials | Core integrity fell below 50% 1644 | -9/Materials | Discovered new exit (range 16) 1796 | -9/Materials | Discovered new exit (range 3) 1922 | -9/Materials | Discovered new exit (range 13) 2059 | -9/Materials | Core integrity fell below 20% 2067 | -9/Materials | Self-destructed Last Messages --------------- Awaiting botnet instructions. 02007_ K-01 Serf cleans the Neutrino Reactor. 02019_ ALERT: Hostiles spotted, dispatching reinforcements to Terminal M004. 02042_ Triggered Alarm Trap. 02042_ An alarm sounds. 02042_ ALERT: Alarm triggered, dispatching investigation squad. 02045_ S-10 Pest destroyed. 02049_ U-05 Engineer lays Concrete. 02051_ Destroyed Lgt. Ion Engine. 02051_ S-10 Pest destroyed. 02052_ U-05 Engineer lays Concrete. 02058_ Destroyed Lgt. Ion Engine. 02058_ S-10 Pest destroyed. 02058_ Wheel+ destroyed. 02058_ Destroyed Wheel+. 02058_ U-05 Engineer builds a Wall. 02061_ S-10 Pest destroyed. 02061_ U-05 Engineer destroyed. 02064_ G-34 Mercenary destroyed. Map ----- +----------------------------------------------------+ | # """ #?????# """ """ #????????????????????? | | # #?????# """ """ #????????????????????? | | +###########?????# #?????????????####???? | | #????????????# #????????????? #???? | | #????????????# #???????# ???? #???? | | #????????????# #???????# """ #???? | | """ #??????###########+############# """ #???? | | """ #??????# "" + %#### # #???? | | """ #??????# ""S # + !!* ! # """ #???? | | #??????# "" # #### !![ # """ #???? | | #??????# # #??# !! # """ #???? | | #####??????# # #??# # #???? | | ########### """ + #??# """ " #####+####???? | | + """ # #??# """ T + #????? | | ######### """ # #??# """ " # #????? | | #???????# # #??# # ##+#+###??? | | #???????########## #??#####+#### # #? | | #???????????????# ##### # #? | | #???????????????# # #? | | #???????????????# # " " #? | | #???????????????# # """ # "R" #? | | #??????????########### """ ####### """ = #? | | #??????????#!! ! # """ #?????##########? | | ^ #??????????#!! # #???????????????? | | #??????????#! #???????????????? | | #?????????????"""" @ """ #???????????????? | | ## #?????????????"""" % =""" #???????????????? | | ?? #?????????????"""" """ #???????????????? | | ?? ??????????? g g */ + ??????????????? | | ?? ?????????# # ?????????????? | | ?? ????????########+ ####????????????? | | ?? ???????????????# g [ ??????????????? | | ?? ?????????????? ## #????????????? | | ?? ? ????????????? #####?######????????????? | | ???????????????????? ????????????????????????? | | ???????????????????? !????????????????????????? | | ???????????????????!!!!?????????????????????????? | | ???????????????????####?????????????????????????? | | ????????????????????????????????????????????????? | | | | | | | | | | | | | | | | | | | | | | | +----------------------------------------------------+ Best States ------------- Heat Dissipation 50 Energy Generation 14 Energy Capacity 275 Matter Stores 300 Matter Capacity 300 Sight Range 16 Terrain Scan Density 10 Armor Coverage 150 Evasion (%) 42 Offensive Hacking 10 Item Schematics ----------------- Huge Storage Unit | -10/Materials | Hacked Robot Schematics ------------------ None Fabricated ------------ Nothing Repaired ---------- Nothing Studied --------- Wheel | -9/Materials | Hacked Com. Wheel | -9/Materials | Hacked Alien Tech Used ----------------- None Achievements -------------- None Challenges ------------ None Game ------ Seed StrikeProjectionBlasthammer Manual? 0 Play Time 00:24:39 Cumulative 212.1 hours Start 2026.07.26 @ 12:09:37 End 2026.07.26 @ 12:35:55 Sessions 1 Manual Loads 0 Difficulty Rogue Special Mode None Game No. 271 Rogue 271 Adventurer 0 Explorer 0 Win Type - Total 6 Types 6/0/0/0/0/0/0/0/0/0 Lore% 80 Gallery% 62 Achievement% 50 Wizard Run 0 Options --------- Layout 0 ASCII 0 Keyboard 0 Movement Numpad Keybinds 0 Fullscreen 1 Font 18/Terminus Map View 76x50 Zoom Use 0% Tactical HUD 1 Map Filters NONE Filters NONE Steam 1 RUN: 6fa42a0d-2760-4fef-890a-bbd5f29dfbcc